[Event "Titled Tuesday Blitz June 07 Early 2022"]
[White "Vasquez Schroeder, Rodrigo"]
[Black "Abarca Gonzalez, Nicolas"]
[WhiteFideId "3400042"]
[BlackFideId "3409422"]
[WhiteElo "2567"]
[BlackElo "2504"]
[Result "0-1"]
[Round "10"]
[TimeControl "180+1"]
[Date "2022.06.07"]
[WhiteClock "0:00:04"]
[BlackClock "0:00:07"]

1. e4 {[%clk 0:03:00]}  c5 {[%clk 0:02:59]} 2. Nf3 {[%clk 0:03:00]}  d6 {[%clk 0:03:00]} 3. d4 {[%clk 0:03:01]}  cxd4 {[%clk 0:03:00]} 4. Nxd4 {[%clk 0:02:58]}  Nf6 {[%clk 0:03:00]} 5. Nc3 {[%clk 0:02:57]}  g6 {[%clk 0:03:00]} 6. Be3 {[%clk 0:02:57]}  Bg7 {[%clk 0:03:01]} 7. f3 {[%clk 0:02:57]}  O-O {[%clk 0:03:02]} 8. Qd2 {[%clk 0:02:57]}  Nc6 {[%clk 0:03:02]} 9. Bc4 {[%clk 0:02:54]}  Ne5 {[%clk 0:03:02]} 10. Bb3 {[%clk 0:02:54]}  Bd7 {[%clk 0:03:03]} 11. O-O-O {[%clk 0:02:52]}  Qa5 {[%clk 0:03:04]} 12. Kb1 {[%clk 0:02:43]}  Rfc8 {[%clk 0:03:04]} 13. Bg5 {[%clk 0:02:33]}  Nc4 {[%clk 0:03:01]} 14. Bxc4 {[%clk 0:02:31]}  Rxc4 {[%clk 0:03:02]} 15. Nb3 {[%clk 0:02:32]}  Qe5 {[%clk 0:03:02]} 16. Be3 {[%clk 0:02:16]}  a5 {[%clk 0:02:45]} 17. Bd4 {[%clk 0:02:14]}  Qe6 {[%clk 0:02:45]} 18. a4 {[%clk 0:02:14]}  Bxa4 {[%clk 0:02:44]} 19. Nxa4 {[%clk 0:02:08]}  Rxa4 {[%clk 0:02:45]} 20. g4 {[%clk 0:02:01]}  Rc4 {[%clk 0:02:35]} 21. Bc3 {[%clk 0:01:45]}  a4 {[%clk 0:02:28]} 22. Nd4 {[%clk 0:01:45]}  Qc8 {[%clk 0:02:28]} 23. Nb5 {[%clk 0:01:39]}  a3 {[%clk 0:02:24]} 24. g5 {[%clk 0:01:28]}  Nxe4 {[%clk 0:00:50]} 25. fxe4 {[%clk 0:01:25]}  Bxc3 {[%clk 0:00:49]} 26. bxc3 {[%clk 0:01:21]}  Qc5 {[%clk 0:00:48]} 27. Qd5 {[%clk 0:01:16]}  Qc8 {[%clk 0:00:36]} 28. Rd4 {[%clk 0:01:08]}  Rc5 {[%clk 0:00:36]} 29. Qb3 {[%clk 0:01:08]}  a2+ {[%clk 0:00:32]} 30. Kb2 {[%clk 0:01:06]}  Ra5 {[%clk 0:00:33]} 31. Rb4 {[%clk 0:01:05]}  Qh3 {[%clk 0:00:22]} 32. Ra1 {[%clk 0:00:57]}  Rxg5 {[%clk 0:00:22]} 33. Rxa2 {[%clk 0:00:56]}  Rxa2+ {[%clk 0:00:22]} 34. Qxa2 {[%clk 0:00:50]}  Qxh2 {[%clk 0:00:23]} 35. Qa8+ {[%clk 0:00:49]}  Kg7 {[%clk 0:00:23]} 36. Qxb7 {[%clk 0:00:49]}  Rg2 {[%clk 0:00:21]} 37. Na3 {[%clk 0:00:47]}  Qe5 {[%clk 0:00:21]} 38. Rb5 {[%clk 0:00:33]}  Qe6 {[%clk 0:00:19]} 39. Qd5 {[%clk 0:00:33]}  Qxd5 {[%clk 0:00:18]} 40. Rxd5 {[%clk 0:00:33]}  h5 {[%clk 0:00:19]} 41. Rd1 {[%clk 0:00:28]}  h4 {[%clk 0:00:19]} 42. Rh1 {[%clk 0:00:29]}  g5 {[%clk 0:00:19]} 43. Nc4 {[%clk 0:00:28]}  Kf6 {[%clk 0:00:18]} 44. Ne3 {[%clk 0:00:28]}  Rg3 {[%clk 0:00:18]} 45. Nd5+ {[%clk 0:00:28]}  Ke6 {[%clk 0:00:17]} 46. Rf1 {[%clk 0:00:27]}  h3 {[%clk 0:00:15]} 47. Kb3 {[%clk 0:00:20]}  f5 {[%clk 0:00:15]} 48. Nc7+ {[%clk 0:00:10]}  Kd7 {[%clk 0:00:15]} 49. Nd5 {[%clk 0:00:11]}  fxe4 {[%clk 0:00:15]} 50. Rh1 {[%clk 0:00:11]}  g4 {[%clk 0:00:14]} 51. Nf4 {[%clk 0:00:10]}  e5 {[%clk 0:00:14]} 52. Nd5 {[%clk 0:00:10]}  Ke6 {[%clk 0:00:13]} 53. Kc4 {[%clk 0:00:10]}  Rf3 {[%clk 0:00:12]} 54. Nc7+ {[%clk 0:00:10]}  Kf5 {[%clk 0:00:12]} 55. Nd5 {[%clk 0:00:10]}  e3 {[%clk 0:00:12]} 56. Kd3 {[%clk 0:00:10]}  e4+ {[%clk 0:00:05]} 57. Ke2 {[%clk 0:00:10]}  Rf2+ {[%clk 0:00:05]} 58. Kxe3 {[%clk 0:00:10]}  Rxc2 {[%clk 0:00:06]} 59. Rf1+ {[%clk 0:00:09]}  Ke5 {[%clk 0:00:06]} 60. Nf4 {[%clk 0:00:07]}  Rxc3+ {[%clk 0:00:06]} 61. Kd2 {[%clk 0:00:07]}  Rf3 {[%clk 0:00:06]} 62. Rxf3 {[%clk 0:00:04]}  exf3 {[%clk 0:00:07]} 0-1


[Site "https://www.chess.com"]

[Event "Titled Tuesday Blitz June 07 Early 2022"]
[White "Yaksin, Oleg"]
[Black "Hambleton, Aman"]
[WhiteFideId "24105880"]
[BlackFideId "2606577"]
[WhiteElo "2256"]
[BlackElo "2552"]
[Result "0-1"]
[Round "10"]
[TimeControl "180+1"]
[Date "2022.06.07"]
[WhiteClock "0:00:04"]
[BlackClock "0:00:02"]

1. d4 {[%clk 0:03:00]}  Nf6 {[%clk 0:02:54]} 2. c4 {[%clk 0:03:00]}  e6 {[%clk 0:02:46]} 3. g3 {[%clk 0:03:00]}  c5 {[%clk 0:02:41]} 4. d5 {[%clk 0:02:59]}  exd5 {[%clk 0:02:33]} 5. cxd5 {[%clk 0:03:00]}  d6 {[%clk 0:02:34]} 6. Nc3 {[%clk 0:03:00]}  g6 {[%clk 0:02:34]} 7. Bg2 {[%clk 0:03:00]}  Bg7 {[%clk 0:02:35]} 8. Nf3 {[%clk 0:03:00]}  O-O {[%clk 0:02:35]} 9. O-O {[%clk 0:03:01]}  Nbd7 {[%clk 0:02:26]} 10. Bf4 {[%clk 0:02:49]}  Qe7 {[%clk 0:02:26]} 11. Re1 {[%clk 0:02:45]}  a6 {[%clk 0:02:24]} 12. a4 {[%clk 0:02:42]}  Ng4 {[%clk 0:01:38]} 13. Qc2 {[%clk 0:02:23]}  Re8 {[%clk 0:01:24]} 14. Rab1 {[%clk 0:02:07]}  Nde5 {[%clk 0:00:55]} 15. Nxe5 {[%clk 0:01:19]}  Nxe5 {[%clk 0:00:50]} 16. Bd2 {[%clk 0:01:12]}  Bf5 {[%clk 0:00:34]} 17. e4 {[%clk 0:01:12]}  Bg4 {[%clk 0:00:35]} 18. f4 {[%clk 0:00:40]}  Nf3+ {[%clk 0:00:26]} 19. Bxf3 {[%clk 0:00:39]}  Bxf3 {[%clk 0:00:27]} 20. Qd3 {[%clk 0:00:40]}  Bxc3 {[%clk 0:00:18]} 21. Qxc3 {[%clk 0:00:27]}  Bxe4 {[%clk 0:00:16]} 22. f5 {[%clk 0:00:23]}  gxf5 {[%clk 0:00:15]} 23. Bf4 {[%clk 0:00:20]}  b5 {[%clk 0:00:06]} 24. Rbd1 {[%clk 0:00:13]}  f6 {[%clk 0:00:03]} 25. a5 {[%clk 0:00:12]}  Qf7 {[%clk 0:00:02]} 26. Qd2 {[%clk 0:00:11]}  Rad8 {[%clk 0:00:02]} 27. Kf2 {[%clk 0:00:11]}  Rd7 {[%clk 0:00:02]} 28. Re3 {[%clk 0:00:11]}  Kg7 {[%clk 0:00:02]} 29. b4 {[%clk 0:00:11]}  c4 {[%clk 0:00:02]} 30. Qc3 {[%clk 0:00:10]}  h5 {[%clk 0:00:03]} 31. Rde1 {[%clk 0:00:11]}  Kg6 {[%clk 0:00:03]} 32. h4 {[%clk 0:00:11]}  Rde7 {[%clk 0:00:03]} 33. Qd4 {[%clk 0:00:11]}  Rd7 {[%clk 0:00:03]} 34. Qc3 {[%clk 0:00:11]}  Qxd5 {[%clk 0:00:02]} 35. R1e2 {[%clk 0:00:09]}  Qe6 {[%clk 0:00:02]} 36. Rd2 {[%clk 0:00:10]}  Red8 {[%clk 0:00:02]} 37. Rd4 {[%clk 0:00:10]}  d5 {[%clk 0:00:03]} 38. Qd2 {[%clk 0:00:10]}  Re8 {[%clk 0:00:03]} 39. Rc3 {[%clk 0:00:10]}  Rde7 {[%clk 0:00:02]} 40. Re3 {[%clk 0:00:10]}  Qc6 {[%clk 0:00:02]} 41. Rc3 {[%clk 0:00:10]}  Bd3 {[%clk 0:00:03]} 42. Rcxd3 {[%clk 0:00:09]}  Re2+ {[%clk 0:00:03]} 43. Qxe2 {[%clk 0:00:09]}  Rxe2+ {[%clk 0:00:04]} 44. Kxe2 {[%clk 0:00:09]}  cxd3+ {[%clk 0:00:05]} 45. Kxd3 {[%clk 0:00:10]}  Qe6 {[%clk 0:00:03]} 46. Kd2 {[%clk 0:00:10]}  Kf7 {[%clk 0:00:03]} 47. Be3 {[%clk 0:00:09]}  Qc6 {[%clk 0:00:02]} 48. Bf4 {[%clk 0:00:09]}  Ke6 {[%clk 0:00:02]} 49. Kd3 {[%clk 0:00:08]}  Qc8 {[%clk 0:00:02]} 50. Kd2 {[%clk 0:00:08]}  Qg8 {[%clk 0:00:02]} 51. Rd3 {[%clk 0:00:07]}  Qg4 {[%clk 0:00:02]} 52. Re3+ {[%clk 0:00:07]}  Kf7 {[%clk 0:00:03]} 53. Rd3 {[%clk 0:00:07]}  Qh3 {[%clk 0:00:03]} 54. Kc3 {[%clk 0:00:07]}  Ke6 {[%clk 0:00:03]} 55. Re3+ {[%clk 0:00:06]}  Kd7 {[%clk 0:00:03]} 56. Kd4 {[%clk 0:00:04]}  Qg2 {[%clk 0:00:02]} 57. Kc5 {[%clk 0:00:04]}  Qc2+ {[%clk 0:00:02]} 58. Kxd5 {[%clk 0:00:04]}  Qc4# {[%clk 0:00:02]} 0-1


[Site "https://www.chess.com"]

[Event "Titled Tuesday Blitz June 07 Early 2022"]
[White "Yang, Kaiqi"]
[Black "Khoroshev, Nikita"]
[WhiteFideId "8604398"]
[BlackFideId "14200287"]
[WhiteElo "2373"]
[BlackElo "2354"]
[Result "0-1"]
[Round "10"]
[TimeControl "180+1"]
[Date "2022.06.07"]
[WhiteClock "0:00:03"]
[BlackClock "0:00:08"]

1. d4 {[%clk 0:03:00]}  Nf6 {[%clk 0:02:59]} 2. c4 {[%clk 0:03:00]}  g6 {[%clk 0:02:59]} 3. Nc3 {[%clk 0:03:00]}  Bg7 {[%clk 0:02:59]} 4. e4 {[%clk 0:03:00]}  d6 {[%clk 0:02:59]} 5. Be2 {[%clk 0:03:00]}  O-O {[%clk 0:02:59]} 6. Nf3 {[%clk 0:03:01]}  Nc6 {[%clk 0:02:59]} 7. d5 {[%clk 0:02:59]}  Ne5 {[%clk 0:02:58]} 8. Nxe5 {[%clk 0:02:59]}  dxe5 {[%clk 0:02:59]} 9. c5 {[%clk 0:02:56]}  e6 {[%clk 0:02:58]} 10. O-O {[%clk 0:02:45]}  exd5 {[%clk 0:02:54]} 11. exd5 {[%clk 0:02:44]}  Nd7 {[%clk 0:02:54]} 12. Be3 {[%clk 0:02:33]}  f5 {[%clk 0:02:52]} 13. c6 {[%clk 0:02:33]}  Nb6 {[%clk 0:02:48]} 14. Bc5 {[%clk 0:02:22]}  Re8 {[%clk 0:02:30]} 15. a4 {[%clk 0:02:22]}  bxc6 {[%clk 0:02:25]} 16. dxc6 {[%clk 0:02:19]}  Be6 {[%clk 0:02:23]} 17. a5 {[%clk 0:02:12]}  Nd5 {[%clk 0:02:12]} 18. Nxd5 {[%clk 0:01:14]}  Qxd5 {[%clk 0:01:53]} 19. Qxd5 {[%clk 0:01:09]}  Bxd5 {[%clk 0:01:54]} 20. Rfd1 {[%clk 0:01:08]}  Bxc6 {[%clk 0:01:34]} 21. Bc4+ {[%clk 0:01:08]}  Kh8 {[%clk 0:01:34]} 22. b4 {[%clk 0:01:04]}  a6 {[%clk 0:01:28]} 23. Rac1 {[%clk 0:01:02]}  Ba4 {[%clk 0:01:24]} 24. Rd5 {[%clk 0:00:51]}  e4 {[%clk 0:01:15]} 25. Bd4 {[%clk 0:00:46]}  c6 {[%clk 0:00:59]} 26. Bxg7+ {[%clk 0:00:44]}  Kxg7 {[%clk 0:01:00]} 27. Rd7+ {[%clk 0:00:40]}  Kf6 {[%clk 0:00:58]} 28. Rxh7 {[%clk 0:00:39]}  Red8 {[%clk 0:00:52]} 29. f4 {[%clk 0:00:32]}  exf3 {[%clk 0:00:51]} 30. gxf3 {[%clk 0:00:32]}  Rd4 {[%clk 0:00:49]} 31. Kf2 {[%clk 0:00:29]}  Re8 {[%clk 0:00:20]} 32. h4 {[%clk 0:00:22]}  Re7 {[%clk 0:00:14]} 33. Rxe7 {[%clk 0:00:19]}  Kxe7 {[%clk 0:00:15]} 34. Bxa6 {[%clk 0:00:17]}  Rxb4 {[%clk 0:00:15]} 35. Be2 {[%clk 0:00:15]}  Rb2 {[%clk 0:00:13]} 36. Ke1 {[%clk 0:00:09]}  Ra2 {[%clk 0:00:08]} 37. Rc5 {[%clk 0:00:05]}  Kd6 {[%clk 0:00:07]} 38. Rc3 {[%clk 0:00:05]}  Bb5 {[%clk 0:00:06]} 39. Bxb5 {[%clk 0:00:03]}  cxb5 {[%clk 0:00:07]} 40. Rd3+ {[%clk 0:00:02]}  Ke5 {[%clk 0:00:08]} 41. Rb3 {[%clk 0:00:02]}  Rxa5 {[%clk 0:00:08]} 42. Kf2 {[%clk 0:00:02]}  f4 {[%clk 0:00:06]} 43. Kg2 {[%clk 0:00:02]}  Kf5 {[%clk 0:00:06]} 44. Rb4 {[%clk 0:00:02]}  g5 {[%clk 0:00:05]} 45. hxg5 {[%clk 0:00:02]}  Kxg5 {[%clk 0:00:06]} 46. Kh3 {[%clk 0:00:03]}  Kf5 {[%clk 0:00:06]} 47. Kh4 {[%clk 0:00:03]}  Ke5 {[%clk 0:00:05]} 48. Kg4 {[%clk 0:00:03]}  Kd5 {[%clk 0:00:05]} 49. Kxf4 {[%clk 0:00:04]}  Ra4 {[%clk 0:00:04]} 50. Rxa4 {[%clk 0:00:02]}  bxa4 {[%clk 0:00:05]} 51. Ke3 {[%clk 0:00:03]}  a3 {[%clk 0:00:06]} 52. Kd3 {[%clk 0:00:03]}  a2 {[%clk 0:00:07]} 53. Kc2 {[%clk 0:00:03]}  a1=Q {[%clk 0:00:08]} 0-1


[Site "https://www.chess.com"]

[Event "Titled Tuesday Blitz June 07 Early 2022"]
[White "Yuan, Qingyu"]
[Black "Andreikin, Dmitry"]
[WhiteFideId "8609772"]
[BlackFideId "4158814"]
[WhiteElo "2359"]
[BlackElo "2736"]
[Result "0-1"]
[Round "10"]
[TimeControl "180+1"]
[Date "2022.06.07"]
[WhiteClock "0:00:04"]
[BlackClock "0:00:13"]

1. e4 {[%clk 0:03:00]}  c5 {[%clk 0:03:00]} 2. Nf3 {[%clk 0:03:00]}  e6 {[%clk 0:03:00]} 3. b3 {[%clk 0:03:01]}  b6 {[%clk 0:03:00]} 4. d4 {[%clk 0:03:01]}  cxd4 {[%clk 0:03:00]} 5. Nxd4 {[%clk 0:03:02]}  Bb7 {[%clk 0:03:01]} 6. Nd2 {[%clk 0:03:02]}  Nc6 {[%clk 0:02:59]} 7. Bb2 {[%clk 0:03:01]}  Nxd4 {[%clk 0:02:58]} 8. Bxd4 {[%clk 0:03:01]}  Ne7 {[%clk 0:02:59]} 9. Qg4 {[%clk 0:02:55]}  Nc6 {[%clk 0:02:53]} 10. Bb2 {[%clk 0:02:50]}  Nb4 {[%clk 0:02:51]} 11. Bd3 {[%clk 0:02:41]}  Rc8 {[%clk 0:02:51]} 12. O-O {[%clk 0:02:15]}  Nxd3 {[%clk 0:02:51]} 13. cxd3 {[%clk 0:02:16]}  Rc2 {[%clk 0:02:51]} 14. Nc4 {[%clk 0:02:09]}  d5 {[%clk 0:02:35]} 15. Qd1 {[%clk 0:01:47]}  Rxb2 {[%clk 0:02:35]} 16. Nxb2 {[%clk 0:01:45]}  Ba3 {[%clk 0:02:35]} 17. Qc2 {[%clk 0:01:32]}  O-O {[%clk 0:02:35]} 18. Nd1 {[%clk 0:01:20]}  Qf6 {[%clk 0:02:30]} 19. Ne3 {[%clk 0:01:12]}  dxe4 {[%clk 0:02:23]} 20. dxe4 {[%clk 0:01:12]}  Rc8 {[%clk 0:02:20]} 21. Qd3 {[%clk 0:01:08]}  Rd8 {[%clk 0:02:19]} 22. Qc4 {[%clk 0:01:03]}  Bc5 {[%clk 0:02:18]} 23. Rad1 {[%clk 0:00:58]}  Rc8 {[%clk 0:02:18]} 24. Qd3 {[%clk 0:00:48]}  h5 {[%clk 0:02:17]} 25. a4 {[%clk 0:00:47]}  Qg6 {[%clk 0:02:10]} 26. f3 {[%clk 0:00:35]}  Qg5 {[%clk 0:02:06]} 27. Rfe1 {[%clk 0:00:35]}  h4 {[%clk 0:01:43]} 28. Kh1 {[%clk 0:00:34]}  Qf4 {[%clk 0:01:40]} 29. Qd7 {[%clk 0:00:28]}  Ba6 {[%clk 0:01:26]} 30. Qxa7 {[%clk 0:00:25]}  Bxe3 {[%clk 0:01:12]} 31. Qxa6 {[%clk 0:00:25]}  Rc3 {[%clk 0:01:08]} 32. Rd3 {[%clk 0:00:18]}  Bd2 {[%clk 0:00:59]} 33. Rd1 {[%clk 0:00:14]}  Rc2 {[%clk 0:00:57]} 34. Qxb6 {[%clk 0:00:11]}  Bc3 {[%clk 0:00:52]} 35. Qg1 {[%clk 0:00:07]}  Be5 {[%clk 0:00:50]} 36. b4 {[%clk 0:00:04]}  g5 {[%clk 0:00:48]} 37. h3 {[%clk 0:00:03]}  Rb2 {[%clk 0:00:42]} 38. b5 {[%clk 0:00:03]}  Kg7 {[%clk 0:00:41]} 39. b6 {[%clk 0:00:03]}  Rxb6 {[%clk 0:00:41]} 40. Ra3 {[%clk 0:00:02]}  Rb2 {[%clk 0:00:32]} 41. a5 {[%clk 0:00:02]}  Bc7 {[%clk 0:00:29]} 42. a6 {[%clk 0:00:02]}  Bb6 {[%clk 0:00:29]} 43. Qxb6 {[%clk 0:00:02]}  Rxb6 {[%clk 0:00:27]} 44. a7 {[%clk 0:00:03]}  Rd6 {[%clk 0:00:14]} 45. Rxd6 {[%clk 0:00:02]}  Qc1+ {[%clk 0:00:14]} 46. Kh2 {[%clk 0:00:02]}  Qxa3 {[%clk 0:00:14]} 47. Rd7 {[%clk 0:00:02]}  Kf6 {[%clk 0:00:14]} 48. Rb7 {[%clk 0:00:02]}  Qa6 {[%clk 0:00:13]} 49. Rd7 {[%clk 0:00:02]}  Qc6 {[%clk 0:00:13]} 50. Kh1 {[%clk 0:00:02]}  Qa4 {[%clk 0:00:11]} 51. Kh2 {[%clk 0:00:02]}  Kg6 {[%clk 0:00:11]} 52. Kh1 {[%clk 0:00:02]}  f5 {[%clk 0:00:12]} 53. exf5+ {[%clk 0:00:02]}  exf5 {[%clk 0:00:13]} 54. Kh2 {[%clk 0:00:02]}  Kf6 {[%clk 0:00:13]} 55. Kh1 {[%clk 0:00:02]}  Ke6 {[%clk 0:00:14]} 56. Rh7 {[%clk 0:00:03]}  Ke5 {[%clk 0:00:14]} 57. Kh2 {[%clk 0:00:03]}  Qa5 {[%clk 0:00:14]} 58. Re7+ {[%clk 0:00:02]}  Kf4 {[%clk 0:00:13]} 59. Rf7 {[%clk 0:00:02]}  Ke5 {[%clk 0:00:13]} 60. Re7+ {[%clk 0:00:03]}  Kd6 {[%clk 0:00:13]} 61. Rf7 {[%clk 0:00:03]}  Ke6 {[%clk 0:00:14]} 62. Rh7 {[%clk 0:00:04]}  Qe5+ {[%clk 0:00:14]} 63. Kh1 {[%clk 0:00:04]}  Qa1+ {[%clk 0:00:15]} 64. Kh2 {[%clk 0:00:04]}  Qa5 {[%clk 0:00:15]} 65. Rh6+ {[%clk 0:00:02]}  Kd5 {[%clk 0:00:13]} 66. Rh7 {[%clk 0:00:03]}  Kc6 {[%clk 0:00:13]} 67. Rg7 {[%clk 0:00:04]}  Qe5+ {[%clk 0:00:13]} 68. Kh1 {[%clk 0:00:03]}  Qa1+ {[%clk 0:00:13]} 69. Kh2 {[%clk 0:00:03]}  Kb6 {[%clk 0:00:14]} 70. Rh7 {[%clk 0:00:03]}  Qe5+ {[%clk 0:00:13]} 71. Kh1 {[%clk 0:00:03]}  Qe8 {[%clk 0:00:14]} 72. Kg1 {[%clk 0:00:03]}  Ka6 {[%clk 0:00:12]} 73. Kh1 {[%clk 0:00:04]}  Kb6 {[%clk 0:00:12]} 74. Kg1 {[%clk 0:00:03]}  Qg8 {[%clk 0:00:12]} 75. Re7 {[%clk 0:00:03]}  Kc6 {[%clk 0:00:12]} 76. Kh1 {[%clk 0:00:03]}  Kd6 {[%clk 0:00:13]} 77. Rg7 {[%clk 0:00:02]}  Qa2 {[%clk 0:00:11]} 78. Rh7 {[%clk 0:00:02]}  Ke5 {[%clk 0:00:11]} 79. Kh2 {[%clk 0:00:02]}  Kf4 {[%clk 0:00:11]} 80. Rf7 {[%clk 0:00:02]}  Qa5 {[%clk 0:00:11]} 81. Rh7 {[%clk 0:00:02]}  Ke3 {[%clk 0:00:12]} 82. Re7+ {[%clk 0:00:02]}  Kf2 {[%clk 0:00:12]} 83. Rb7 {[%clk 0:00:02]}  Qe5+ {[%clk 0:00:12]} 84. f4 {[%clk 0:00:02]}  Qxf4+ {[%clk 0:00:11]} 85. Kh1 {[%clk 0:00:03]}  Qc1+ {[%clk 0:00:12]} 86. Kh2 {[%clk 0:00:04]}  Qg1# {[%clk 0:00:13]} 0-1


[Site "https://www.chess.com"]

[Event "Titled Tuesday Blitz June 07 Early 2022"]
[White "Adla, Diego"]
[Black "Tanenbaum, Zachary"]
[WhiteFideId "100072"]
[BlackFideId "2060850"]
[WhiteElo "2377"]
[BlackElo "2175"]
[Result "0-1"]
[Round "11"]
[TimeControl "180+1"]
[Date "2022.06.07"]
[WhiteClock "0:00:20"]
[BlackClock "0:00:06"]

1. c4 {[%clk 0:02:55]}  e5 {[%clk 0:02:59]} 2. Nc3 {[%clk 0:02:52]}  Nf6 {[%clk 0:03:00]} 3. Nf3 {[%clk 0:02:51]}  Nc6 {[%clk 0:03:01]} 4. e4 {[%clk 0:02:51]}  Bb4 {[%clk 0:03:00]} 5. d3 {[%clk 0:02:50]}  d6 {[%clk 0:03:01]} 6. Be2 {[%clk 0:02:49]}  Bg4 {[%clk 0:03:00]} 7. O-O {[%clk 0:02:49]}  Bxf3 {[%clk 0:02:59]} 8. Bxf3 {[%clk 0:02:49]}  O-O {[%clk 0:02:54]} 9. a3 {[%clk 0:02:36]}  Bc5 {[%clk 0:02:53]} 10. b4 {[%clk 0:02:36]}  Bd4 {[%clk 0:02:50]} 11. Bd2 {[%clk 0:02:28]}  a5 {[%clk 0:02:49]} 12. b5 {[%clk 0:02:23]}  Ne7 {[%clk 0:02:50]} 13. g3 {[%clk 0:02:19]}  c6 {[%clk 0:02:41]} 14. bxc6 {[%clk 0:02:17]}  bxc6 {[%clk 0:02:42]} 15. Bg2 {[%clk 0:02:18]}  Rb8 {[%clk 0:02:39]} 16. Rb1 {[%clk 0:02:18]}  Qc7 {[%clk 0:02:31]} 17. Qa4 {[%clk 0:02:14]}  Ng4 {[%clk 0:02:21]} 18. Rxb8 {[%clk 0:02:02]}  Rxb8 {[%clk 0:02:21]} 19. h3 {[%clk 0:02:03]}  Nxf2 {[%clk 0:02:00]} 20. Rxf2 {[%clk 0:02:02]}  Rb2 {[%clk 0:02:00]} 21. Be1 {[%clk 0:01:58]}  Rxf2 {[%clk 0:01:33]} 22. Bxf2 {[%clk 0:01:58]}  Bxc3 {[%clk 0:01:33]} 23. c5 {[%clk 0:01:59]}  dxc5 {[%clk 0:00:44]} 24. Bxc5 {[%clk 0:01:58]}  Qd7 {[%clk 0:00:28]} 25. Bxe7 {[%clk 0:01:53]}  Qxe7 {[%clk 0:00:29]} 26. Qxc6 {[%clk 0:01:53]}  Bd4+ {[%clk 0:00:28]} 27. Kh2 {[%clk 0:01:50]}  h5 {[%clk 0:00:21]} 28. Qa8+ {[%clk 0:01:45]}  Kh7 {[%clk 0:00:22]} 29. Qxa5 {[%clk 0:01:45]}  h4 {[%clk 0:00:22]} 30. Qe1 {[%clk 0:01:38]}  Qxa3 {[%clk 0:00:19]} 31. Qf1 {[%clk 0:01:29]}  hxg3+ {[%clk 0:00:19]} 32. Kxg3 {[%clk 0:01:28]}  Qe7 {[%clk 0:00:18]} 33. Qf5+ {[%clk 0:01:24]}  g6 {[%clk 0:00:18]} 34. Qg4 {[%clk 0:01:24]}  Kg7 {[%clk 0:00:17]} 35. h4 {[%clk 0:01:22]}  Qf6 {[%clk 0:00:11]} 36. Bf3 {[%clk 0:01:18]}  Be3 {[%clk 0:00:09]} 37. h5 {[%clk 0:01:16]}  Bf4+ {[%clk 0:00:09]} 38. Kh3 {[%clk 0:01:14]}  Qd6 {[%clk 0:00:09]} 39. hxg6 {[%clk 0:01:06]}  fxg6 {[%clk 0:00:10]} 40. Be2 {[%clk 0:00:57]}  Qd4 {[%clk 0:00:10]} 41. Kg2 {[%clk 0:00:54]}  Qe3 {[%clk 0:00:09]} 42. Qd7+ {[%clk 0:00:48]}  Kf6 {[%clk 0:00:09]} 43. Qd8+ {[%clk 0:00:44]}  Kf7 {[%clk 0:00:09]} 44. Qd7+ {[%clk 0:00:40]}  Kf8 {[%clk 0:00:06]} 45. Qd8+ {[%clk 0:00:40]}  Kf7 {[%clk 0:00:05]} 46. Qd7+ {[%clk 0:00:40]}  Kf8 {[%clk 0:00:05]} 47. Qg4 {[%clk 0:00:37]}  Kg7 {[%clk 0:00:05]} 48. Kf1 {[%clk 0:00:31]}  Qc1+ {[%clk 0:00:05]} 49. Bd1 {[%clk 0:00:27]}  Qc7 {[%clk 0:00:06]} 50. Qe6 {[%clk 0:00:25]}  Qd8 {[%clk 0:00:06]} 51. Bb3 {[%clk 0:00:21]}  Qxd3+ {[%clk 0:00:06]} 52. Kg2 {[%clk 0:00:22]}  Qg3+ {[%clk 0:00:06]} 53. Kf1 {[%clk 0:00:22]}  Qf3+ {[%clk 0:00:06]} 54. Ke1 {[%clk 0:00:20]}  Qxe4+ {[%clk 0:00:05]} 55. Kd1 {[%clk 0:00:20]}  Qd3+ {[%clk 0:00:06]} 56. Ke1 {[%clk 0:00:20]}  Bg3# {[%clk 0:00:06]} 0-1


[Site "https://www.chess.com"]

[Event "Titled Tuesday Blitz June 07 Early 2022"]
[White "Ajay Krishna, S"]
[Black "Atakhan, Abtin"]
[WhiteFideId "5096430"]
[BlackFideId "22502203"]
[WhiteElo "2247"]
[BlackElo "2087"]
[Result "0-1"]
[Round "11"]
[TimeControl "180+1"]
[Date "2022.06.07"]
[WhiteClock "0:00:18"]
[BlackClock "0:00:46"]

1. d4 {[%clk 0:02:59]}  d5 {[%clk 0:02:58]} 2. c4 {[%clk 0:02:59]}  c6 {[%clk 0:02:58]} 3. e3 {[%clk 0:02:58]}  Nf6 {[%clk 0:02:58]} 4. Nc3 {[%clk 0:02:58]}  a6 {[%clk 0:02:55]} 5. Nf3 {[%clk 0:02:57]}  Bf5 {[%clk 0:02:53]} 6. Bd3 {[%clk 0:02:56]}  Bg6 {[%clk 0:02:52]} 7. O-O {[%clk 0:02:55]}  e6 {[%clk 0:02:52]} 8. Qe2 {[%clk 0:02:54]}  Bb4 {[%clk 0:02:48]} 9. Bd2 {[%clk 0:02:50]}  Bxd3 {[%clk 0:02:42]} 10. Qxd3 {[%clk 0:02:50]}  O-O {[%clk 0:02:40]} 11. Nxd5 {[%clk 0:02:44]}  Nxd5 {[%clk 0:02:38]} 12. cxd5 {[%clk 0:02:44]}  Bxd2 {[%clk 0:02:38]} 13. Nxd2 {[%clk 0:02:40]}  exd5 {[%clk 0:02:38]} 14. b4 {[%clk 0:02:38]}  Nd7 {[%clk 0:02:35]} 15. a4 {[%clk 0:02:38]}  Nb6 {[%clk 0:02:30]} 16. b5 {[%clk 0:02:36]}  cxb5 {[%clk 0:02:31]} 17. axb5 {[%clk 0:02:37]}  a5 {[%clk 0:02:32]} 18. Nb3 {[%clk 0:02:35]}  Nc4 {[%clk 0:02:31]} 19. e4 {[%clk 0:02:30]}  b6 {[%clk 0:02:25]} 20. Rfc1 {[%clk 0:02:24]}  Rc8 {[%clk 0:01:58]} 21. Rc2 {[%clk 0:01:45]}  dxe4 {[%clk 0:01:50]} 22. Qxe4 {[%clk 0:01:40]}  Nd6 {[%clk 0:01:51]} 23. Qd3 {[%clk 0:01:34]}  Rxc2 {[%clk 0:01:50]} 24. Qxc2 {[%clk 0:01:34]}  Nxb5 {[%clk 0:01:50]} 25. Qc4 {[%clk 0:01:32]}  Qd7 {[%clk 0:01:44]} 26. h3 {[%clk 0:01:29]}  Rc8 {[%clk 0:01:42]} 27. Qa4 {[%clk 0:01:25]}  Qd5 {[%clk 0:01:39]} 28. Re1 {[%clk 0:01:16]}  h6 {[%clk 0:01:15]} 29. Re5 {[%clk 0:01:16]}  Nc3 {[%clk 0:01:13]} 30. Rxd5 {[%clk 0:00:55]}  Nxa4 {[%clk 0:01:12]} 31. Rb5 {[%clk 0:00:50]}  Kf8 {[%clk 0:01:03]} 32. d5 {[%clk 0:00:50]}  Ke7 {[%clk 0:01:03]} 33. Nd4 {[%clk 0:00:48]}  Rc5 {[%clk 0:01:02]} 34. Nf5+ {[%clk 0:00:30]}  Kf6 {[%clk 0:01:01]} 35. Rxc5 {[%clk 0:00:25]}  Nxc5 {[%clk 0:01:01]} 36. Nd6 {[%clk 0:00:25]}  Ke5 {[%clk 0:00:54]} 37. Nc4+ {[%clk 0:00:25]}  Kxd5 {[%clk 0:00:54]} 38. Nxb6+ {[%clk 0:00:26]}  Kd4 {[%clk 0:00:54]} 39. Kf1 {[%clk 0:00:21]}  a4 {[%clk 0:00:54]} 40. Nxa4 {[%clk 0:00:17]}  Nxa4 {[%clk 0:00:54]} 41. Ke2 {[%clk 0:00:17]}  Ke4 {[%clk 0:00:55]} 42. f3+ {[%clk 0:00:17]}  Kf5 {[%clk 0:00:54]} 43. Kf2 {[%clk 0:00:17]}  Nc3 {[%clk 0:00:55]} 44. g3 {[%clk 0:00:18]}  g5 {[%clk 0:00:54]} 45. Ke3 {[%clk 0:00:18]}  Nd1+ {[%clk 0:00:52]} 46. Ke2 {[%clk 0:00:18]}  Nc3+ {[%clk 0:00:51]} 47. Ke3 {[%clk 0:00:18]}  Nd5+ {[%clk 0:00:52]} 48. Kd4 {[%clk 0:00:18]}  Nf6 {[%clk 0:00:53]} 49. Ke3 {[%clk 0:00:18]}  Nd7 {[%clk 0:00:50]} 50. Kd4 {[%clk 0:00:18]}  h5 {[%clk 0:00:50]} 51. Ke3 {[%clk 0:00:18]}  h4 {[%clk 0:00:49]} 52. gxh4 {[%clk 0:00:16]}  gxh4 {[%clk 0:00:50]} 53. f4 {[%clk 0:00:15]}  Nc5 {[%clk 0:00:48]} 54. Kf3 {[%clk 0:00:16]}  Ne6 {[%clk 0:00:49]} 55. Kg2 {[%clk 0:00:16]}  Kxf4 {[%clk 0:00:49]} 56. Kh2 {[%clk 0:00:17]}  Kf3 {[%clk 0:00:49]} 57. Kh1 {[%clk 0:00:17]}  Kg3 {[%clk 0:00:49]} 58. Kg1 {[%clk 0:00:17]}  Kxh3 {[%clk 0:00:50]} 59. Kh1 {[%clk 0:00:18]}  Kg3 {[%clk 0:00:50]} 60. Kg1 {[%clk 0:00:18]}  h3 {[%clk 0:00:49]} 61. Kh1 {[%clk 0:00:18]}  Nc5 {[%clk 0:00:46]} 62. Kg1 {[%clk 0:00:18]}  Ne4 {[%clk 0:00:47]} 63. Kh1 {[%clk 0:00:18]}  f6 {[%clk 0:00:46]} 64. Kg1 {[%clk 0:00:18]}  h2+ {[%clk 0:00:46]} 0-1


[Site "https://www.chess.com"]